fUST/lending_fUST_20250203
["ID","MTS","AMOUNT","RATE_DAILY","PERIOD"]
[351403179,1738554643439,-630.03258442,0.00016575,2]
[351403181,1738554643449,-523.69,0.00016575,2]
[351403183,1738554643459,-176.29711112,0.00016575,2]
[351403185,1738554643468,-517.63441965,0.00016575,2]
[351403187,1738554643478,-181.315323,0.00016712,2]
[351403189,1738554643487,-181.315323,0.00016712,2]
[351403191,1738554643500,-204.116579,0.00016712,2]
[351403193,1738554643509,-204.116579,0.00016712,2]
[351403195,1738554643519,-204.116579,0.00016712,2]
[351403197,1738554643528,-204.116579,0.00016712,2]
[351403199,1738554643539,-225.184195,0.00016712,2]
[351403201,1738554643548,-225.184195,0.00016712,2]
[351403203,1738554643557,-151.0,0.00016712,2]
[351403205,1738554643568,-151.0,0.00016712,2]
[351403207,1738554643582,-509.534165,0.00016712,2]
[351403209,1738554643591,-509.534165,0.00016712,2]
[351403211,1738554643601,-151.0,0.00016712,2]
[351403213,1738554643611,-151.0,0.00016712,2]
[351403215,1738554643621,-500.0,0.00016712,2]
[351403217,1738554643631,-500.0,0.00016712,2]
[351403218,1738554643640,-500.0,0.00016712,2]
[351403220,1738554643650,-500.0,0.00016712,2]
[351403221,1738554643661,-500.0,0.00016712,2]
[351403223,1738554643671,-500.0,0.00016712,2]
[351403225,1738554643680,-502.59485842,0.00016712,2]
[351403226,1738554643690,-507.71872338,0.00016712,2]
[351403228,1738554643700,-500.0,0.00016712,2]
[351403230,1738554643710,-500.0,0.00016712,2]
[351403231,1738554643719,-500.0,0.00016712,2]
[351403233,1738554643729,-500.0,0.00016712,2]
[351403234,1738554643738,-500.0,0.00016712,2]
[351403235,1738554643748,-500.0,0.00016712,2]
[351403238,1738554643758,-500.0,0.00016712,2]
[351403242,1738554643767,-505.8262154,0.00016712,2]
[351403243,1738554643777,-500.0,0.00016712,2]
[351403247,1738554643787,-500.0,0.00016712,2]
[351403250,1738554643797,-500.0,0.00016712,2]
[351403251,1738554643807,-500.0,0.00016712,2]
[351403253,1738554643816,-500.0,0.00016712,2]
[351403254,1738554643825,-500.0,0.00016712,2]
[351403255,1738554643835,-500.0,0.00016712,2]
[351403256,1738554643845,-500.0,0.00016712,2]
[351403258,1738554643855,-500.6529492,0.00016712,2]
[351403259,1738554643864,-500.0,0.00016712,2]
[351403261,1738554643874,-500.0,0.00016712,2]
[351403262,1738554643884,-500.0,0.00016712,2]
[351403264,1738554643893,-500.0,0.00016712,2]
[351403266,1738554643903,-504.64596186,0.00016712,2]
[351403267,1738554643912,-500.0,0.00016712,2]
[351403269,1738554643923,-500.0,0.00016712,2]
[351403271,1738554643932,-500.0,0.00016712,2]
[351403273,1738554643942,-500.0,0.00016712,2]
[351403274,1738554643951,-500.0,0.00016712,2]
[351403276,1738554643961,-500.0,0.00016712,2]
[351403278,1738554643971,-520.79693184,0.00016712,2]
[351403280,1738554643981,-500.0,0.00016712,2]
[351403281,1738554643995,-500.0,0.00016712,2]
[351403283,1738554644005,-500.0,0.00016712,2]
[351403285,1738554644015,-500.0,0.00016712,2]
[351403287,1738554644025,-501.6836223,0.00016712,2]
[351403289,1738554644034,-500.0,0.00016712,2]
[351403290,1738554644044,-500.0,0.00016712,2]
[351403292,1738554644054,-500.0,0.00016712,2]
[351403293,1738554644063,-500.0,0.00016712,2]
[351403295,1738554644072,-500.0,0.00016712,2]
[351403297,1738554644082,-500.0,0.00016712,2]
[351403298,1738554644092,-500.0,0.00016712,2]
[351403299,1738554644102,-500.0,0.00016712,2]
[351403300,1738554644112,-500.0,0.00016712,2]
[351403301,1738554644122,-500.0,0.00016712,2]
[351403302,1738554644131,-500.0,0.00016712,2]
[351403303,1738554644141,-500.0,0.00016712,2]
[351403304,1738554644151,-500.0,0.00016712,2]
[351403305,1738554644160,-502.90025122,0.00016712,2]
[351403306,1738554644171,-471.04594959,0.00016712,2]
[351403307,1738554644180,-500.0,0.00016712,2]
[351403308,1738554644190,-500.0,0.00016712,2]
[351403309,1738554644200,-502.13956518,0.00016712,2]
[351403310,1738554644210,-500.0,0.00016712,2]
[351403311,1738554644219,-500.0,0.00016712,2]
[351403312,1738554644230,-500.0,0.00016712,2]
[351403313,1738554644242,-500.0,0.00016712,2]
[351403314,1738554644252,-500.0,0.00016712,2]
[351403315,1738554644261,-500.0,0.00016712,2]
[351403316,1738554644271,-500.0,0.00016712,2]
[351403317,1738554644282,-552.53851737,0.00016712,2]
[351403318,1738554644291,-496.33586959,0.00016712,2]
[351403319,1738554644301,-500.0,0.00016712,2]
[351403320,1738554644311,-511.29713324,0.00016712,2]
[351403321,1738554644322,-500.0,0.00016712,2]
[351403322,1738554644333,-500.0,0.00016712,2]
[351403323,1738554644343,-500.0,0.00016712,2]
[351403324,1738554644353,-500.0,0.00016712,2]
[351403325,1738554644364,-500.0,0.00016712,2]
[351403326,1738554644374,-500.0,0.00016712,2]
[351403327,1738554644385,-508.08749264,0.00016712,2]
[351403328,1738554644397,-500.0,0.00016712,2]
[351403329,1738554644412,-500.0,0.00016712,2]
[351403330,1738554644422,-500.0,0.00016712,2]
[351403331,1738554644432,-500.0,0.00016712,2]
[351403332,1738554644442,-500.0,0.00016712,2]
[351403333,1738554644452,-500.0,0.00016712,2]
[351403334,1738554644462,-500.0,0.00016712,2]
[351403335,1738554644471,-500.0,0.00016712,2]
[351403336,1738554644481,-226.14890067,0.00016712,2]
[351403337,1738554644494,-500.0,0.00016712,2]
[351403338,1738554644505,-504.40620073,0.00016712,2]
[351403339,1738554644516,-500.0,0.00016712,2]
[351403340,1738554644527,-500.0,0.00016712,2]
[351403341,1738554644538,-500.0,0.00016712,2]
[351403342,1738554644548,-500.0,0.00016712,2]
[351403343,1738554644558,-504.9203609,0.00016712,2]
[351403344,1738554644568,-374.11629205,0.00016712,2]
[351403345,1738554644580,-252.68,0.00016712,2]
[351403346,1738554644720,-500.0,0.00016712,2]
[351403347,1738554644731,-470.89676566,0.00016712,2]
[351403348,1738554644743,-500.0,0.00016712,2]
[351403349,1738554644753,-500.0,0.00016712,2]
[351403350,1738554644763,-502.98538448,0.00016712,2]
[351403351,1738554644773,-500.0,0.00016712,2]
[351403352,1738554644783,-504.85244676,0.00016712,2]
[351403353,1738554644794,-500.0,0.00016712,2]
[351403354,1738554644804,-500.0,0.00016712,2]
[351403355,1738554644814,-503.62610359,0.00016712,2]
[351403356,1738554644826,-500.0,0.00016712,2]
[351403357,1738554644835,-500.0,0.00016712,2]
[351403358,1738554644845,-500.0,0.00016712,2]
[351403359,1738554644855,-500.0,0.00016712,2]
[351403360,1738554644865,-638.46607108,0.00016712,2]
[351403362,1738554644875,-500.0,0.00016712,2]
[351403364,1738554644885,-502.10317341,0.00016712,2]
[351403366,1738554644895,-500.0,0.00016712,2]
[351403368,1738554644905,-500.0,0.00016712,2]
[351403369,1738554644914,-500.0,0.00016712,2]
[351403371,1738554644924,-512.96027489,0.00016712,2]
[351403373,1738554644934,-500.0,0.00016712,2]
[351403375,1738554644944,-500.0,0.00016712,2]
[351403377,1738554644954,-500.0,0.00016712,2]
[351403378,1738554644963,-500.0,0.00016712,2]
[351403380,1738554644974,-500.0,0.00016712,2]
[351403382,1738554644984,-500.0,0.00016712,2]
[351403384,1738554645000,-500.0,0.00016712,2]
[351403386,1738554645010,-500.0,0.00016712,2]
[351403388,1738554645019,-500.0,0.00016712,2]
[351403389,1738554645029,-500.0,0.00016712,2]
[351403391,1738554645039,-500.0,0.00016712,2]
[351403393,1738554645049,-500.0,0.00016712,2]
[351403395,1738554645060,-504.03436663,0.00016712,2]
[351403397,1738554645070,-481.71427054,0.00016712,2]
[351403399,1738554645081,-500.0,0.00016712,2]
[351403401,1738554645091,-500.0,0.00016712,2]
[351403402,1738554645101,-500.0,0.00016712,2]
[351403404,1738554645111,-511.16,0.00016712,2]
[351403406,1738554645122,-500.0,0.00016712,2]
[351403408,1738554645132,-500.0,0.00016712,2]
[351403410,1738554645143,-500.0,0.00016712,2]
[351403412,1738554645154,-500.0,0.00016712,2]
[351403413,1738554645165,-500.0,0.00016712,2]
[351403415,1738554645176,-352.54752496,0.00016712,2]
[351403417,1738554645187,-500.0,0.00016712,2]
[351403419,1738554645198,-500.0,0.00016712,2]
[351403420,1738554645208,-500.0,0.00016712,2]
[351403422,1738554645219,-500.0,0.00016712,2]
[351403424,1738554645229,-500.0,0.00016712,2]
[351403425,1738554645239,-500.0,0.00016712,2]
[351403427,1738554645256,-502.75991926,0.00016712,2]
[351403429,1738554645268,-500.0,0.00016712,2]
[351403430,1738554645280,-500.0,0.00016712,2]
[351403431,1738554645292,-500.0,0.00016712,2]
[351403432,1738554645315,-500.0,0.00016712,2]
[351403433,1738554645327,-500.0,0.00016712,2]
[351403435,1738554645338,-500.0,0.00016712,2]
[351403437,1738554645351,-500.0,0.00016712,2]
[351403439,1738554645361,-500.0,0.00016712,2]
[351403440,1738554645374,-500.0,0.00016712,2]
[351403441,1738554645386,-500.0,0.00016712,2]
[351403443,1738554645397,-500.0,0.00016712,2]
[351403445,1738554645408,-500.0,0.00016712,2]
[351403447,1738554645419,-500.0,0.00016712,2]
[351403449,1738554645431,-500.0,0.00016712,2]
[351403450,1738554645441,-500.0,0.00016712,2]
[351403452,1738554645451,-500.0,0.00016712,2]
[351403454,1738554645461,-380.98109731,0.00016712,2]
[351403456,1738554645471,-500.0,0.00016712,2]
[351403457,1738554645481,-500.0,0.00016712,2]
[351403458,1738554645497,-500.0,0.00016712,2]
[351403459,1738554645508,-500.0,0.00016712,2]
[351403460,1738554645517,-500.0,0.00016712,2]
[351403461,1738554645527,-500.0,0.00016712,2]
[351403462,1738554645537,-500.0,0.00016712,2]
[351403463,1738554645546,-445.90231529,0.00016712,2]
[351403464,1738554645556,-500.0,0.00016712,2]
[351403466,1738554645565,-500.0,0.00016712,2]
[351403467,1738554645576,-500.0,0.00016712,2]
[351403469,1738554645589,-501.97804412,0.00016712,2]
[351403471,1738554645598,-500.0,0.00016712,2]
[351403473,1738554645608,-500.0,0.00016712,2]
[351403474,1738554645619,-500.0,0.00016712,2]
[351403476,1738554645629,-773.23,0.00016712,2]
[351403478,1738554645638,-500.0,0.00016712,2]
[351403479,1738554645647,-500.0,0.00016712,2]
[351403480,1738554645656,-500.0,0.00016712,2]
[351403481,1738554645666,-765.33,0.00016712,2]
[351403482,1738554645676,-500.0,0.00016712,2]
[351403483,1738554645686,-500.0,0.00016712,2]
[351403485,1738554645695,-503.46025792,0.00016712,2]
[351403486,1738554645705,-502.53856804,0.00016712,2]
[351403487,1738554645714,-500.0,0.00016712,2]
[351403488,1738554645724,-668.66,0.00016712,2]
[351403489,1738554645734,-500.0,0.00016712,2]
[351403490,1738554645747,-500.0,0.00016712,2]
[351403491,1738554645756,-500.0,0.00016712,2]
[351403492,1738554645767,-500.0,0.00016712,2]
[351403493,1738554645777,-500.0,0.00016712,2]
[351403494,1738554645787,-500.0,0.00016712,2]
[351403495,1738554645797,-500.0,0.00016712,2]
[351403496,1738554645807,-500.0,0.00016712,2]
[351403497,1738554645817,-507.78564529,0.00016712,2]
[351403498,1738554645827,-500.0,0.00016712,2]
[351403499,1738554645836,-417.40543914,0.00016712,2]
[351403501,1738554645846,-293.426502,0.00016712,2]
[351403503,1738554645856,-500.0,0.00016712,2]
[351403505,1738554645867,-500.0,0.00016712,2]
[351403506,1738554645877,-500.0,0.00016712,2]
[351403507,1738554645886,-500.0,0.00016712,2]
[351403508,1738554645896,-500.0,0.00016712,2]
[351403509,1738554645906,-500.0,0.00016712,2]
[351403510,1738554645916,-192.047586,0.00016712,2]
[351403511,1738554645925,-500.0,0.00016712,2]
[351403512,1738554645935,-500.0,0.00016712,2]
[351403514,1738554645945,-500.0,0.00016712,2]
[351403515,1738554645955,-502.18787351,0.00016712,2]
[351403516,1738554645965,-200.49962142,0.00016712,2]
[351403517,1738554645975,-500.0,0.00016712,2]
[351403519,1738554645985,-500.0,0.00016712,2]
[351403520,1738554645999,-288.75388206,0.00016712,2]
[351403522,1738554646009,-500.0,0.00016712,2]
[351403524,1738554646019,-500.0,0.00016712,2]
[351403526,1738554646028,-500.0,0.00016712,2]
[351403528,1738554646039,-510.1687606,0.00016712,2]
[351403530,1738554646049,-500.0,0.00016712,2]
[351403532,1738554646059,-500.0,0.00016712,2]
[351403534,1738554646069,-500.0,0.00016712,2]
[351403536,1738554646080,-500.0,0.00016712,2]
[351403538,1738554646092,-500.0,0.00016712,2]
[351403540,1738554646103,-500.0,0.00016712,2]
[351403542,1738554646113,-500.0,0.00016712,2]
[351403545,1738554646124,-500.0,0.00016712,2]
[351403547,1738554646135,-500.0,0.00016712,2]
[351403549,1738554646146,-509.06289712,0.00016712,2]
[351403550,1738554646156,-597.3812232,0.00016712,2]
[351403553,1738554646166,-508.341789,0.00016712,2]
[351403555,1738554646177,-500.0,0.00016712,2]
[351403557,1738554646190,-3183.83,0.00016712,2]
[351403559,1738554646200,-266.82868389,0.00016712,2]
[351403561,1738554646210,-877.881464,0.00016712,2]
[351403563,1738554646221,-500.0,0.00016712,2]
[351403565,1738554646232,-877.881464,0.00016712,2]
[351403567,1738554646244,-500.0,0.00016712,2]
[351403569,1738554646255,-500.0,0.00016712,2]
[351403571,1738554646265,-596.49,0.00016712,2]
[351403573,1738554646275,-503.54909873,0.00016712,2]
[351403574,1738554646285,-7065.8,0.00016712,2]
[351403577,1738554646295,-684.68,0.00016712,2]
[351403579,1738554646305,-504.71632675,0.00016712,2]
[351403580,1738554646314,-758.586966,0.00016712,2]
[351403582,1738554646325,-500.0,0.00016712,2]
[351403584,1738554646337,-500.0,0.00016712,2]
[351403586,1738554646349,-500.0,0.00016712,2]
[351403589,1738554646360,-151.0,0.00016712,2]
[351403591,1738554646370,-500.0,0.00016712,2]
[351403593,1738554646380,-503.04935549,0.00016712,2]
[351403594,1738554646391,-758.586966,0.00016712,2]
[351403596,1738554646401,-531.79663827,0.00016712,2]
[351403598,1738554646411,-500.0,0.00016712,2]
[351403600,1738554646420,-515.11006296,0.00016712,2]
[351403602,1738554646430,-750.78,0.00016712,2]
[351403604,1738554646440,-517.39997544,0.00016712,2]
[351403606,1738554646449,-500.0,0.00016712,2]
[351403608,1738554646459,-513.62770633,0.00016712,2]
[351403610,1738554646469,-500.0,0.00016712,2]
[351403613,1738554646480,-500.0,0.00016712,2]
[351403615,1738554646494,-404.76250189,0.00016712,2]
[351403617,1738554646504,-500.0,0.00016712,2]
[351403618,1738554646514,-650.17,0.00016712,2]
[351403620,1738554646524,-464.75414457,0.00016712,2]
[351403622,1738554646534,-512.34780514,0.00016712,2]
[351403625,1738554646545,-509.46702164,0.00016712,2]
[351403627,1738554646556,-500.0,0.00016712,2]
[351403628,1738554646567,-500.0,0.00016712,2]
[351403631,1738554646578,-1019.39,0.00016712,2]
[351403633,1738554646591,-500.0,0.00016712,2]
[351403634,1738554646601,-500.0,0.00016712,2]
[351403637,1738554646612,-500.0,0.00016712,2]
[351403638,1738554646623,-492.45477862,0.00016712,2]
[351403641,1738554646632,-8146.71,0.00016712,2]
[351403643,1738554646642,-507.90397925,0.00016712,2]
[351403645,1738554646651,-613.84,0.00016712,2]
[351403647,1738554646661,-550.81,0.00016712,2]
[351403649,1738554646671,-500.0,0.00016712,2]
[351403651,1738554646680,-500.0,0.00016712,2]
[351403653,1738554646690,-506.67727072,0.00016712,2]
[351403655,1738554646700,-909.51,0.00016712,2]
[351403657,1738554646711,-500.0,0.00016712,2]
[351403659,1738554646720,-507.08274477,0.00016712,2]
[351403661,1738554646730,-804.6,0.00016712,2]
[351403663,1738554646739,-500.0,0.00016712,2]
[351403665,1738554646753,-500.0,0.00016712,2]
[351403667,1738554646763,-512.49331927,0.00016712,2]
[351403669,1738554646773,-151.0,0.00016712,2]
[351403671,1738554646783,-500.0,0.00016712,2]
[351403673,1738554646794,-508.55370256,0.00016712,2]
[351403675,1738554646804,-500.0,0.00016712,2]
[351403677,1738554646815,-490.20077666,0.00016712,2]
[351403679,1738554646825,-500.0,0.00016712,2]
[351403681,1738554646835,-2011.93,0.00016712,2]
[351403683,1738554646845,-500.0,0.00016712,2]
[351403685,1738554646854,-510.99507563,0.00016712,2]
[351403687,1738554646864,-500.0,0.00016712,2]
[351403689,1738554646875,-500.0,0.00016712,2]
[351403691,1738554646885,-3668.25,0.00016712,2]
[351403693,1738554646895,-500.0,0.00016712,2]
[351403695,1738554646905,-500.0,0.00016712,2]
[351403697,1738554646915,-741.77,0.00016712,2]
[351403699,1738554646924,-1378.39,0.00016712,2]
[351403701,1738554646934,-500.0,0.00016712,2]
[351403703,1738554646944,-500.0,0.00016712,2]
[351403705,1738554646953,-500.0,0.00016712,2]
[351403707,1738554646963,-500.0,0.00016712,2]
[351403709,1738554646974,-500.0,0.00016712,2]
[351403711,1738554646984,-500.0,0.00016712,2]
[351403713,1738554646999,-500.0,0.00016712,2]
[351403715,1738554647009,-1589.79,0.00016712,2]
[351403717,1738554647019,-774.95,0.00016712,2]
[351403719,1738554647029,-500.0,0.00016712,2]
[351403721,1738554647039,-516.28644659,0.00016712,2]
[351403723,1738554647050,-500.0,0.00016712,2]
[351403725,1738554647061,-1000.0,0.00016712,7]
[351403727,1738554647071,-500.0,0.00016712,2]
[351403729,1738554647081,-635.87,0.00016712,2]
[351403732,1738554647092,-1797.16,0.00016712,2]
[351403734,1738554647103,-724.24,0.00016712,2]
[351403736,1738554647113,-500.0,0.00016712,2]
[351403738,1738554647122,-668.66,0.00016712,2]
[351403740,1738554647132,-500.0,0.00016712,2]
[351403742,1738554647143,-500.0,0.00016712,2]
[351403744,1738554647153,-392.53173521,0.00016712,2]
[351403746,1738554647163,-1734.91,0.00016712,2]
[351403748,1738554647173,-509.03234538,0.00016712,2]
[351403750,1738554647184,-419.55053375,0.00016712,2]
[351403752,1738554647194,-513.74948849,0.00016712,2]
[351403754,1738554647203,-500.0,0.00016712,2]
[351403756,1738554647213,-500.0,0.00016712,2]
[351403758,1738554647223,-500.0,0.00016712,2]
[351403760,1738554647234,-500.0,0.00016712,2]
[351403762,1738554647250,-522.61697842,0.00016712,2]
[351403764,1738554647261,-500.0,0.00016712,2]
[351403766,1738554647272,-500.0,0.00016712,2]
[351403768,1738554647283,-500.0,0.00016712,2]
[351403770,1738554647293,-500.0,0.00016712,2]
[351403774,1738554647338,-378.46574439,0.00016712,2]
[351403776,1738554647349,-1085.82,0.00016712,2]
[351403778,1738554647359,-576.84925612,0.00016712,2]
[351403780,1738554647369,-500.0,0.00016712,2]
[351403782,1738554647378,-623.92,0.00016712,2]
[351403784,1738554647388,-500.0,0.00016712,2]
[351403786,1738554647398,-500.0,0.00016712,2]
[351403788,1738554647407,-500.0,0.00016712,2]
[351403789,1738554647417,-712.64,0.00016712,2]
[351403791,1738554647426,-1384.58,0.00016712,2]
[351403792,1738554647435,-564.8,0.00016712,2]
[351403794,1738554647445,-347.4977541,0.00016712,2]
[351403795,1738554647455,-500.0,0.00016712,2]
[351403797,1738554647465,-523.69,0.00016712,2]
[351403798,1738554647474,-467.56197525,0.00016722,2]
[351403799,1738554647484,-13196.26583088,0.00016769,2]
[351403800,1738554647499,-500.0,0.00016773,2]
[351403801,1738554647509,-500.84240601,0.00016773,2]
[351403802,1738554647519,-158.93783746,0.00016773,2]
[351403803,1738554647529,-167.94105497,0.00016773,2]
[351403804,1738554647539,-181.315323,0.00016849,2]
[351403805,1738554647549,-181.315323,0.00016849,2]
[351403806,1738554647558,-204.116579,0.00016849,2]
[351403808,1738554647568,-204.116579,0.00016849,2]
[351403809,1738554647579,-225.184195,0.00016849,2]
[351403810,1738554647588,-225.184195,0.00016849,2]
[351403811,1738554647599,-151.0,0.00016849,2]
[351403812,1738554647609,-509.534165,0.00016849,2]
[351403813,1738554647619,-509.534165,0.00016849,2]
[351403814,1738554647629,-151.0,0.00016849,2]
[351403815,1738554647638,-151.0,0.00016849,2]
[351403816,1738554647647,-500.0,0.00016849,2]
[351403817,1738554647657,-500.0,0.00016849,2]
[351403818,1738554647666,-500.0,0.00016849,2]
[351403819,1738554647677,-500.0,0.00016849,2]
[351403820,1738554647686,-500.0,0.00016849,2]
[351403821,1738554647695,-509.01864695,0.00016849,2]
[351403822,1738554647705,-500.0,0.00016849,2]
[351403823,1738554647714,-500.0,0.00016849,2]
[351403824,1738554647724,-500.0,0.00016849,2]
[351403825,1738554647734,-500.0,0.00016849,2]
[351403826,1738554647749,-500.0,0.00016849,2]
[351403827,1738554647758,-386.04922688,0.00016849,2]
[351403828,1738554647768,-500.0,0.00016849,2]
[351403829,1738554647777,-183.45955607,0.00016849,2]
[351403830,1738554647787,-500.0,0.00016849,2]
[351403831,1738554647796,-501.95270964,0.00016849,2]
[351403832,1738554647805,-504.40850051,0.00016849,2]
[351403833,1738554647815,-505.71894488,0.00016849,2]
[351403834,1738554647824,-507.12140769,0.00016849,2]
[351403835,1738554647834,-617.0856451,0.00016849,2]
[351403836,1738554647844,-500.0,0.00016849,2]
[351403837,1738554647853,-503.07262078,0.00016849,2]
[351403838,1738554647863,-152.08033138,0.00016849,2]
[351403839,1738554647872,-500.0,0.00016849,2]
[351403840,1738554647881,-500.0,0.00016849,2]
[351403841,1738554647891,-500.0,0.00016849,2]
[351403842,1738554647900,-500.0,0.00016849,2]
[351403843,1738554647911,-500.0,0.00016849,2]
[351403844,1738554647919,-500.0,0.00016849,2]
[351403845,1738554647929,-500.0,0.00016849,2]
[351403846,1738554647938,-500.0,0.00016849,2]
[351403847,1738554647949,-505.16514027,0.00016849,2]
[351403848,1738554647958,-500.0,0.00016849,2]
[351403850,1738554647968,-535.81439998,0.00016849,2]
[351403851,1738554647977,-603.80456211,0.00016849,2]
[351403852,1738554647989,-500.0,0.00016849,2]
[351403853,1738554648003,-500.0,0.00016849,2]
[351403854,1738554648013,-500.0,0.00016849,2]
[351403855,1738554648023,-500.0,0.00016849,2]
[351403857,1738554648032,-512.58622123,0.00016849,2]
[351403859,1738554648041,-500.0,0.00016849,2]
[351403860,1738554648051,-500.0,0.00016849,2]
[351403862,1738554648061,-500.0,0.00016849,2]
[351403864,1738554648071,-500.0,0.00016849,2]
[351403865,1738554648082,-502.95130207,0.00016849,2]
[351403866,1738554648093,-500.0,0.00016849,2]
[351403867,1738554648103,-500.0,0.00016849,2]
[351403868,1738554648114,-502.09250307,0.00016849,2]
[351403869,1738554648124,-500.0,0.00016849,2]
[351403870,1738554648134,-503.12813495,0.00016849,2]
[351403871,1738554648143,-196.31895254,0.00016849,2]
[351403872,1738554648153,-508.70497018,0.00016849,2]
[351403873,1738554648163,-500.0,0.00016849,2]
[351403874,1738554648172,-500.0,0.00016849,2]
[351403875,1738554648182,-500.0,0.00016849,2]
[351403877,1738554648191,-500.0,0.00016849,2]
[351403879,1738554648201,-501.20340938,0.00016849,2]
[351403881,1738554648210,-500.0,0.00016849,2]
[351403882,1738554648219,-500.0,0.00016849,2]
[351403884,1738554648229,-500.0,0.00016849,2]
[351403886,1738554648239,-500.0,0.00016849,2]
[351403887,1738554648252,-500.0,0.00016849,2]
[351403889,1738554648262,-500.0,0.00016849,2]
[351403890,1738554648272,-500.0,0.00016849,2]
[351403891,1738554648281,-500.0,0.00016849,2]
[351403892,1738554648291,-500.0,0.00016849,2]
[351403893,1738554648302,-365.47878304,0.00016849,2]
[351403894,1738554648312,-500.0,0.00016849,2]
[351403895,1738554648322,-500.0,0.00016849,2]
[351403896,1738554648331,-500.0,0.00016849,2]
[351403897,1738554648341,-393.62029777,0.00016849,2]
[351403898,1738554648351,-500.0,0.00016849,2]
[351403899,1738554648361,-500.0,0.00016849,2]
[351403900,1738554648371,-500.0,0.00016849,2]
[351403901,1738554648380,-523.23128029,0.00016849,2]
[351403902,1738554648389,-500.0,0.00016849,2]
[351403903,1738554648399,-500.0,0.00016849,2]
[351403904,1738554648408,-500.0,0.00016849,2]
[351403905,1738554648418,-500.0,0.00016849,2]
[351403906,1738554648428,-500.0,0.00016849,2]
[351403907,1738554648438,-194.64324684,0.00016849,2]
[351403908,1738554648448,-510.85046732,0.00016849,2]
[351403909,1738554648458,-500.0,0.00016849,2]
[351403910,1738554648469,-500.0,0.00016849,2]
[351403911,1738554648480,-500.0,0.00016849,2]
[351403912,1738554648491,-507.90883325,0.00016849,2]
[351403913,1738554648507,-500.0,0.00016849,2]
[351403914,1738554648517,-500.0,0.00016849,2]
[351403915,1738554648527,-500.0,0.00016849,2]
[351403916,1738554648538,-500.0,0.00016849,2]
[351403917,1738554648549,-500.0,0.00016849,2]
[351403918,1738554648559,-500.0,0.00016849,2]
[351403919,1738554648570,-500.0,0.00016849,2]
[351403920,1738554648584,-500.0,0.00016849,2]
[351403921,1738554648594,-500.0,0.00016849,2]
[351403922,1738554648604,-500.0,0.00016849,2]
[351403923,1738554648615,-500.0,0.00016849,2]
[351403924,1738554648626,-500.0,0.00016849,2]
[351403925,1738554648636,-500.0,0.00016849,2]
[351403926,1738554648646,-500.0,0.00016849,2]
[351403927,1738554648658,-500.0,0.00016849,2]
[351403928,1738554648669,-502.38479222,0.00016849,2]
[351403929,1738554648679,-502.87017484,0.00016849,2]
[351403930,1738554648689,-500.0,0.00016849,2]
[351403931,1738554648699,-299.24131792,0.00016849,2]
[351403932,1738554648709,-500.0,0.00016849,2]
[351403933,1738554648719,-500.0,0.00016849,2]
[351403934,1738554648729,-500.0,0.00016849,2]
[351403935,1738554648739,-500.0,0.00016849,2]